fUST/lending_fUST_20240824
["ID","MTS","AMOUNT","RATE_DAILY","PERIOD"]
[335747175,1724475040964,-500.0,0.00013698,2]
[335747176,1724475040974,-500.0,0.00013698,2]
[335747177,1724475040983,-500.0,0.00013698,2]
[335747178,1724475040992,-500.0,0.00013698,2]
[335747179,1724475041001,-500.0,0.00013698,2]
[335747180,1724475041010,-500.0,0.00013698,2]
[335747181,1724475041020,-983.06,0.00013698,2]
[335747182,1724475041029,-500.9895342,0.00013698,2]
[335747183,1724475041038,-1260.67,0.00013698,2]
[335747184,1724475041047,-500.0,0.00013698,2]
[335747185,1724475041056,-500.0,0.00013698,2]
[335747186,1724475041065,-500.0,0.00013698,2]
[335747187,1724475041074,-672.35,0.00013698,2]
[335747188,1724475041083,-1359.87,0.00013698,2]
[335747189,1724475041092,-500.0,0.00013698,2]
[335747190,1724475041101,-500.0,0.00013698,2]
[335747191,1724475041110,-500.0,0.00013698,2]
[335747192,1724475041120,-500.0,0.00013698,2]
[335747193,1724475041129,-177.59616055,0.00013698,2]
[335747194,1724475041139,-500.0,0.00013698,2]
[335747195,1724475041148,-315.43926399,0.00013698,2]
[335747196,1724475041157,-500.0,0.00013698,2]
[335747197,1724475041167,-500.0,0.00013698,2]
[335747198,1724475041177,-500.0,0.00013698,2]
[335747199,1724475041186,-500.0,0.00013698,2]
[335747200,1724475041196,-500.0,0.00013698,2]
[335747201,1724475041205,-500.0,0.00013698,2]
[335747202,1724475041215,-500.0,0.00013698,2]
[335747203,1724475041225,-509.55102606,0.00013698,2]
[335747204,1724475041235,-500.0,0.00013698,2]
[335747205,1724475041245,-500.61120877,0.00013698,2]
[335747206,1724475041256,-500.0,0.00013698,2]
[335747207,1724475041266,-500.0,0.00013698,2]
[335747208,1724475041278,-500.0,0.00013698,2]
[335747209,1724475041287,-500.0,0.00013698,2]
[335747210,1724475041298,-500.0,0.00013698,2]
[335747211,1724475041309,-293.91923949,0.00013698,2]
[335747212,1724475041318,-561.87,0.00013698,2]
[335747213,1724475041332,-500.0,0.00013698,2]
[335747214,1724475041341,-500.77864388,0.00013698,2]
[335747215,1724475041350,-500.0,0.00013698,2]
[335747216,1724475041360,-500.0,0.00013698,2]
[335747217,1724475041370,-500.0,0.00013698,2]
[335747218,1724475041379,-500.0,0.00013698,2]
[335747219,1724475041389,-1222.74,0.00013698,2]
[335747220,1724475041400,-500.0,0.00013698,2]
[335747221,1724475041410,-2527.31,0.00013698,2]
[335747222,1724475041423,-500.607898,0.00013698,2]
[335747223,1724475041433,-500.0,0.00013698,2]
[335747224,1724475041442,-763.37,0.00013698,2]
[335747225,1724475041453,-948.86,0.00013698,2]
[335747226,1724475041464,-1490.72,0.00013698,2]
[335747227,1724475041473,-500.0,0.00013698,2]
[335747228,1724475041482,-500.0,0.00013698,2]
[335747229,1724475041492,-500.0,0.00013698,2]
[335747230,1724475041501,-736.42,0.00013698,2]
[335747231,1724475041511,-500.0,0.00013698,2]
[335747232,1724475041520,-1128.08,0.00013698,2]
[335747233,1724475041530,-500.0,0.00013698,2]
[335747234,1724475041541,-500.0,0.00013698,2]
[335747235,1724475041553,-500.0,0.00013698,2]
[335747236,1724475041564,-1717.39,0.00013698,2]
[335747237,1724475041574,-500.0,0.00013698,2]
[335747238,1724475041584,-500.0,0.00013698,2]
[335747239,1724475041593,-500.0,0.00013698,2]
[335747240,1724475041603,-500.0,0.00013698,2]
[335747241,1724475041613,-500.0,0.00013698,2]
[335747242,1724475041622,-538.33,0.00013698,2]
[335747243,1724475041632,-500.0,0.00013698,2]
[335747244,1724475041641,-741.46,0.00013698,2]
[335747245,1724475041651,-500.51934936,0.00013698,2]
[335747246,1724475041660,-1421.72,0.00013698,2]
[335747247,1724475041670,-500.0,0.00013698,2]
[335747248,1724475041680,-500.0,0.00013698,2]
[335747249,1724475041690,-501.81230016,0.00013698,2]
[335747250,1724475041700,-500.0,0.00013698,2]
[335747251,1724475041709,-811.25,0.00013698,2]
[335747252,1724475041718,-500.0,0.00013698,2]
[335747253,1724475041728,-500.0,0.00013698,2]
[335747254,1724475041737,-500.97197037,0.00013698,2]
[335747255,1724475041746,-500.0,0.00013698,2]
[335747256,1724475041756,-500.0,0.00013698,2]
[335747257,1724475041765,-500.0,0.00013698,2]
[335747258,1724475041775,-500.0,0.00013698,2]
[335747259,1724475041784,-500.41907596,0.00013698,2]
[335747260,1724475041793,-500.0,0.00013698,2]
[335747261,1724475041803,-500.0,0.00013698,2]
[335747262,1724475041813,-500.0,0.00013698,2]
[335747263,1724475041825,-500.0,0.00013698,2]
[335747264,1724475041834,-500.0,0.00013698,2]
[335747265,1724475041844,-500.0,0.00013698,2]
[335747266,1724475041853,-500.0,0.00013698,2]
[335747267,1724475041863,-503.05914512,0.00013698,2]
[335747268,1724475041874,-500.0,0.00013698,2]
[335747269,1724475042044,-675.71,0.00013698,2]
[335747270,1724475042055,-1128.38,0.00013698,2]
[335747271,1724475042065,-500.0,0.00013698,2]
[335747272,1724475042075,-500.0,0.00013698,2]
[335747273,1724475042086,-504.04700606,0.00013698,2]
[335747274,1724475042096,-626.08,0.00013698,2]
[335747275,1724475042108,-808.76,0.00013698,2]
[335747276,1724475042118,-207.27455495,0.00013698,2]
[335747277,1724475042128,-516.71,0.00013698,2]
[335747278,1724475042139,-331.08228858,0.00013698,2]
[335747279,1724475042150,-501.11184243,0.00013698,2]
[335747280,1724475042161,-511.23922017,0.00013698,2]
[335747281,1724475042172,-609.57,0.00013698,2]
[335747282,1724475042181,-609.57,0.00013698,2]
[335747283,1724475042190,-609.57,0.00013698,2]
[335747284,1724475042199,-609.57,0.00013698,2]
[335747285,1724475042208,-609.57,0.00013698,2]
[335747286,1724475042217,-500.0,0.00013698,2]
[335747287,1724475042226,-500.0,0.00013698,2]
[335747288,1724475042235,-500.0,0.00013698,2]
[335747289,1724475042244,-609.57,0.00013698,2]
[335747290,1724475042253,-609.57,0.00013698,2]
[335747291,1724475042262,-609.57,0.00013698,2]
[335747292,1724475042271,-718.74,0.00013698,2]
[335747293,1724475042282,-519.67,0.00013698,2]
[335747294,1724475042292,-500.0,0.00013698,2]
[335747295,1724475042302,-2012.18,0.00013698,2]
[335747296,1724475042311,-500.0,0.00013698,2]
[335747297,1724475042324,-500.0,0.00013698,2]
[335747298,1724475042335,-500.0,0.00013698,2]
[335747299,1724475042346,-500.0,0.00013698,2]
[335747300,1724475042355,-500.55269522,0.00013698,2]
[335747301,1724475042364,-500.0,0.00013698,2]
[335747302,1724475042374,-258.8,0.00013698,2]
[335747303,1724475042384,-500.0,0.00013698,2]
[335747304,1724475042393,-500.0,0.00013698,2]
[335747306,1724475042407,-258.0,0.00013698,2]
[335747307,1724475042417,-500.0,0.00013698,2]
[335747308,1724475042428,-500.0,0.00013698,2]
[335747309,1724475042437,-500.0,0.00013698,2]
[335747310,1724475042446,-664.88,0.00013698,2]
[335747311,1724475042455,-500.0,0.00013698,2]
[335747312,1724475042464,-1269.13,0.00013698,2]
[335747313,1724475042474,-500.0,0.00013698,2]
[335747314,1724475042485,-500.0,0.00013698,2]
[335747315,1724475042494,-663.48,0.00013698,2]
[335747316,1724475042503,-500.0,0.00013698,2]
[335747317,1724475042514,-260.0,0.00013698,2]
[335747318,1724475042523,-500.0,0.00013698,2]
[335747319,1724475042533,-258.0,0.00013698,2]
[335747320,1724475042542,-500.0,0.00013698,2]
[335747321,1724475042551,-543.41771865,0.00013698,2]
[335747322,1724475042560,-2174.3,0.00013698,2]
[335747323,1724475042569,-500.0,0.00013698,2]
[335747324,1724475042580,-500.0,0.00013698,2]
[335747325,1724475042591,-500.0,0.00013698,2]
[335747326,1724475042602,-500.0,0.00013698,2]
[335747327,1724475042611,-1036.11,0.00013698,2]
[335747328,1724475042622,-734.82,0.00013698,2]
[335747329,1724475042632,-500.0,0.00013698,2]
[335747330,1724475042641,-500.0,0.00013698,2]
[335747331,1724475042651,-1543.66,0.00013698,2]
[335747332,1724475042661,-1543.66,0.00013698,2]
[335747333,1724475042671,-1543.66,0.00013698,2]
[335747334,1724475042683,-1543.66,0.00013698,2]
[335747335,1724475042695,-500.0,0.00013698,2]
[335747336,1724475042704,-500.0,0.00013698,2]
[335747337,1724475042713,-500.0,0.00013698,2]
[335747338,1724475042722,-1543.66,0.00013698,2]
[335747339,1724475042733,-1543.66,0.00013698,2]
[335747340,1724475042742,-1543.66,0.00013698,2]
[335747341,1724475042751,-500.0,0.00013698,2]
[335747342,1724475042761,-683.89,0.00013698,2]
[335747343,1724475042770,-1543.66,0.00013698,2]
[335747344,1724475042780,-1543.66,0.00013698,2]
[335747345,1724475042791,-1543.66,0.00013698,2]
[335747346,1724475042801,-1543.66,0.00013698,2]
[335747347,1724475042811,-500.0,0.00013698,2]
[335747348,1724475042823,-500.0,0.00013698,2]
[335747349,1724475042833,-1543.66,0.00013698,2]
[335747350,1724475042844,-1543.66,0.00013698,2]
[335747351,1724475042857,-1543.66,0.00013698,2]
[335747352,1724475042867,-1543.66,0.00013698,2]
[335747353,1724475042876,-1543.66,0.00013698,2]
[335747354,1724475042886,-500.0,0.00013698,2]
[335747355,1724475042895,-500.0,0.00013698,2]
[335747356,1724475042904,-500.0,0.00013698,2]
[335747357,1724475042913,-617.3,0.00013698,2]
[335747358,1724475042923,-1394.76,0.00013698,2]
[335747360,1724475042933,-500.0,0.00013698,2]
[335747362,1724475042942,-3180.3,0.00013698,2]
[335747363,1724475042953,-500.0,0.00013698,2]
[335747364,1724475042964,-523.13,0.00013698,2]
[335747365,1724475042975,-1290.36,0.00013698,2]
[335747366,1724475042986,-1441.37,0.00013698,2]
[335747367,1724475042996,-500.0,0.00013698,2]
[335747368,1724475043007,-500.0,0.00013698,2]
[335747369,1724475043018,-500.0,0.00013698,2]
[335747370,1724475043029,-500.0,0.00013698,2]
[335747371,1724475043041,-500.0,0.00013698,2]
[335747372,1724475043051,-500.0,0.00013698,2]
[335747373,1724475043060,-500.0,0.00013698,2]
[335747374,1724475043070,-500.0,0.00013698,2]
[335747375,1724475043079,-500.0,0.00013698,2]
[335747376,1724475043088,-500.0,0.00013698,2]
[335747378,1724475043098,-500.0,0.00013698,2]
[335747380,1724475043107,-500.0,0.00013698,2]
[335747382,1724475043116,-500.0,0.00013698,2]
[335747384,1724475043125,-500.0,0.00013698,2]
[335747385,1724475043134,-416.23042976,0.00013698,2]
[335747387,1724475043144,-500.0,0.00013698,2]
[335747388,1724475043153,-500.0,0.00013698,2]
[335747389,1724475043162,-500.0,0.00013698,2]
[335747390,1724475043172,-500.0,0.00013698,2]
[335747391,1724475043182,-500.0,0.00013698,2]
[335747392,1724475043191,-500.0,0.00013698,2]
[335747393,1724475043200,-992.01,0.00013698,2]
[335747394,1724475043209,-3079.28,0.00013698,2]
[335747395,1724475043219,-500.0,0.00013698,2]
[335747396,1724475043228,-500.0,0.00013698,2]
[335747397,1724475043237,-500.0,0.00013698,2]
[335747398,1724475043247,-564.65068328,0.00013698,2]
[335747399,1724475043256,-502.29850537,0.00013698,2]
[335747400,1724475043266,-500.0,0.00013698,2]
[335747401,1724475043275,-829.15,0.00013698,2]
[335747402,1724475043285,-500.0,0.00013698,2]
[335747403,1724475043294,-500.0,0.00013698,2]
[335747404,1724475043303,-1300.03,0.00013698,2]
[335747405,1724475043312,-500.0,0.00013698,2]
[335747406,1724475043324,-500.0,0.00013698,2]
[335747407,1724475043334,-500.0,0.00013698,2]
[335747408,1724475043344,-529.54190491,0.00013698,2]
[335747409,1724475043353,-546.66878442,0.00013698,2]
[335747410,1724475043362,-500.0,0.00013698,2]
[335747411,1724475043372,-500.0,0.00013698,2]
[335747412,1724475043381,-697.58,0.00013698,2]
[335747413,1724475043391,-578.11,0.00013698,2]
[335747414,1724475043400,-500.0,0.00013698,2]
[335747415,1724475043410,-870.55,0.00013698,2]
[335747416,1724475043419,-500.0,0.00013698,2]
[335747417,1724475043429,-500.0,0.00013698,2]
[335747418,1724475043438,-502.86105163,0.00013698,2]
[335747419,1724475043447,-1705.15,0.00013698,2]
[335747420,1724475043456,-500.0,0.00013698,2]
[335747421,1724475043465,-502.68932578,0.00013698,2]
[335747422,1724475043474,-500.04783979,0.00013698,2]
[335747423,1724475043483,-500.0,0.00013698,2]
[335747424,1724475043493,-500.0,0.00013698,2]
[335747425,1724475043503,-934.92,0.00013698,2]
[335747426,1724475043513,-500.0,0.00013698,2]
[335747427,1724475043522,-500.0,0.00013698,2]
[335747428,1724475043532,-500.0,0.00013698,2]
[335747429,1724475043541,-500.0,0.00013698,2]
[335747430,1724475043550,-500.0,0.00013698,2]
[335747431,1724475043559,-500.0,0.00013698,2]
[335747432,1724475043568,-500.0,0.00013698,2]
[335747433,1724475043577,-442.44977797,0.00013698,2]
[335747434,1724475043586,-500.0,0.00013698,2]
[335747435,1724475043596,-500.0,0.00013698,2]
[335747436,1724475043605,-311.69,0.00013698,2]
[335747437,1724475043614,-927.54,0.00013698,2]
[335747438,1724475043624,-500.0,0.00013698,2]
[335747439,1724475043633,-500.0,0.00013698,2]
[335747440,1724475043642,-1051.01,0.00013698,2]
[335747441,1724475043652,-500.0,0.00013698,2]
[335747442,1724475043661,-567.45,0.00013698,2]
[335747443,1724475043670,-549.9,0.00013698,2]
[335747444,1724475043679,-504.9817126,0.00013698,2]
[335747445,1724475043688,-451.02923329,0.00013698,2]
[335747446,1724475043697,-501.35155916,0.00013698,2]
[335747447,1724475043706,-504.91863653,0.00013698,2]
[335747448,1724475043715,-3296.64,0.00013698,2]
[335747449,1724475043724,-500.0,0.00013698,2]
[335747450,1724475043733,-500.0,0.00013698,2]
[335747451,1724475043742,-1138.37,0.00013698,2]
[335747452,1724475043752,-614.85,0.00013698,2]
[335747453,1724475043761,-503.17953657,0.00013698,2]
[335747454,1724475043770,-3001.05,0.00013698,2]
[335747455,1724475043779,-1349.1,0.00013698,2]
[335747456,1724475043788,-500.18172759,0.00013698,2]
[335747457,1724475043798,-500.0,0.00013698,2]
[335747458,1724475043808,-500.0,0.00013698,2]
[335747459,1724475043817,-500.0,0.00013698,2]
[335747460,1724475043826,-500.0,0.00013698,2]
[335747461,1724475043835,-501.11720891,0.00013698,2]
[335747462,1724475043844,-539.9,0.00013698,2]
[335747463,1724475043853,-639.26,0.00013698,2]
[335747464,1724475043863,-790.51,0.00013698,2]
[335747465,1724475043872,-500.0,0.00013698,2]
[335747466,1724475043881,-613.21,0.00013698,2]
[335747467,1724475043890,-712.1,0.00013698,2]
[335747468,1724475043899,-809.75,0.00013698,2]
[335747469,1724475043909,-500.0,0.00013698,2]
[335747470,1724475043918,-500.0,0.00013698,2]
[335747471,1724475043928,-1074.48,0.00013698,2]
[335747472,1724475043937,-778.89,0.00013698,2]
[335747473,1724475043946,-1462.66,0.00013698,2]
[335747474,1724475043955,-372.73170538,0.00013698,2]
[335747475,1724475043964,-500.0,0.00013698,2]
[335747476,1724475043973,-513.99772868,0.00013698,2]
[335747477,1724475043982,-500.0,0.00013698,2]
[335747478,1724475043991,-1725.52,0.00013698,2]
[335747479,1724475044000,-500.0,0.00013698,2]
[335747480,1724475044009,-2499.07,0.00013698,2]
[335747481,1724475044019,-500.0,0.00013698,2]
[335747482,1724475044029,-500.0,0.00013698,2]
[335747483,1724475044038,-500.0,0.00013698,2]
[335747484,1724475044047,-500.0,0.00013698,2]
[335747485,1724475044056,-500.0,0.00013698,2]
[335747486,1724475044065,-500.0,0.00013698,2]
[335747487,1724475044074,-503.11997067,0.00013698,2]
[335747488,1724475044083,-500.0,0.00013698,2]
[335747489,1724475044092,-556.22,0.00013698,2]
[335747490,1724475044101,-1520.92,0.00013698,2]
[335747491,1724475044111,-1276.87,0.00013698,2]
[335747492,1724475044120,-500.0,0.00013698,2]
[335747493,1724475044129,-500.0,0.00013698,2]
[335747494,1724475044139,-500.0,0.00013698,2]
[335747495,1724475044148,-500.0,0.00013698,2]
[335747496,1724475044157,-683.85,0.00013698,2]
[335747497,1724475044166,-509.13136748,0.00013698,2]
[335747498,1724475044174,-500.0,0.00013698,2]
[335747499,1724475044186,-500.0,0.00013698,2]
[335747500,1724475044195,-575.68528405,0.00013698,2]
[335747501,1724475044204,-735.69,0.00013698,2]
[335747502,1724475044213,-500.0,0.00013698,2]
[335747503,1724475044222,-500.0,0.00013698,2]
[335747504,1724475044232,-930.78,0.00013698,2]
[335747505,1724475044241,-1003.55,0.00013698,2]
[335747506,1724475044250,-285.92282374,0.00013698,2]
[335747507,1724475044259,-500.0,0.00013698,2]
[335747508,1724475044268,-758.97,0.00013698,2]
[335747509,1724475044277,-500.0,0.00013698,2]
[335747510,1724475044287,-2185.53,0.00013698,2]
[335747511,1724475044296,-734.68,0.00013698,2]
[335747512,1724475044305,-500.0,0.00013698,2]
[335747513,1724475044315,-500.0,0.00013698,2]
[335747514,1724475044325,-1114.9,0.00013698,2]
[335747515,1724475044336,-500.71268256,0.00013698,2]
[335747516,1724475044345,-1481.334203,0.00013698,2]
[335747517,1724475044354,-317.59539575,0.00013698,2]
[335747518,1724475044364,-500.0,0.00013698,2]
[335747519,1724475044374,-500.0,0.00013698,2]
[335747520,1724475044383,-1948.03,0.00013698,2]
[335747521,1724475044392,-1481.334203,0.00013698,2]
[335747522,1724475044403,-500.0,0.00013698,2]
[335747523,1724475044413,-583.03,0.00013698,2]
[335747524,1724475044423,-500.0,0.00013698,2]
[335747525,1724475044433,-865.98,0.00013698,2]
[335747526,1724475044442,-1006.69,0.00013698,2]
[335747527,1724475044451,-679.6,0.00013698,2]
[335747528,1724475044461,-500.0,0.00013698,2]
[335747529,1724475044470,-500.0,0.00013698,2]
[335747530,1724475044479,-500.0,0.00013698,2]
[335747531,1724475044489,-500.0,0.00013698,2]
[335747532,1724475044498,-500.0,0.00013698,2]
[335747533,1724475044508,-599.98714986,0.00013698,2]
[335747534,1724475044517,-500.0,0.00013698,2]
[335747535,1724475044526,-500.0,0.00013698,2]
[335747536,1724475044536,-896.1,0.00013698,2]
[335747537,1724475044545,-500.0,0.00013698,2]
[335747538,1724475044555,-1227.11,0.00013698,2]
[335747539,1724475044564,-181.06987993,0.00013698,2]
[335747540,1724475044574,-500.0,0.00013698,2]
[335747541,1724475044584,-1321.08,0.00013698,2]
[335747542,1724475044594,-500.0,0.00013698,2]
[335747543,1724475044603,-695.41,0.00013698,2]
[335747544,1724475044613,-642.69,0.00013698,2]
[335747545,1724475044622,-433.15344614,0.00013698,2]
[335747546,1724475044632,-500.0,0.00013698,2]
[335747547,1724475044641,-500.0,0.00013698,2]
[335747548,1724475044650,-500.0,0.00013698,2]
[335747549,1724475044659,-739.91,0.00013698,2]
[335747550,1724475044668,-773.3,0.00013698,2]
[335747551,1724475044678,-500.0,0.00013698,2]
[335747552,1724475044688,-546.65,0.00013698,2]
[335747553,1724475044697,-500.0,0.00013698,2]
[335747554,1724475044706,-500.0,0.00013698,2]
[335747555,1724475044716,-957.98,0.00013698,2]
[335747556,1724475044725,-500.0,0.00013698,2]
[335747557,1724475044735,-500.0,0.00013698,2]
[335747558,1724475044744,-500.0,0.00013698,2]
[335747559,1724475044753,-500.0,0.00013698,2]
[335747560,1724475044763,-500.0,0.00013698,2]
[335747561,1724475044772,-500.0,0.00013698,2]
[335747562,1724475044782,-501.92089951,0.00013698,2]
[335747563,1724475044791,-500.0,0.00013698,2]
[335747564,1724475044801,-531.77767104,0.00013698,2]
[335747565,1724475044811,-193.80537047,0.00013698,2]
[335747566,1724475044821,-500.0,0.00013698,2]
[335747567,1724475044830,-500.0,0.00013698,2]
[335747568,1724475044840,-500.0,0.00013698,2]
[335747569,1724475044850,-2251.43,0.00013698,2]
[335747570,1724475044859,-542.60168054,0.00013698,2]
[335747571,1724475044869,-858.32,0.00013698,2]
[335747572,1724475044878,-1593.9,0.00013698,2]
[335747573,1724475044887,-500.0,0.00013698,2]
[335747574,1724475044897,-500.0,0.00013698,2]
[335747575,1724475044906,-500.0,0.00013698,2]
[335747576,1724475044915,-500.0,0.00013698,2]
[335747577,1724475044925,-500.0,0.00013698,2]
[335747578,1724475044935,-260.00000007,0.00013698,2]
[335747579,1724475044945,-900.28,0.00013698,2]
[335747580,1724475044954,-500.0,0.00013698,2]
[335747581,1724475044964,-2008.41,0.00013698,2]
[335747582,1724475044974,-580.19,0.00013698,2]
[335747583,1724475044983,-500.0,0.00013698,2]
[335747584,1724475044993,-883.29,0.00013698,2]
[335747585,1724475045002,-500.0,0.00013698,2]
[335747586,1724475045012,-500.0,0.00013698,2]
[335747587,1724475045022,-500.0,0.00013698,2]
[335747588,1724475045032,-963.71,0.00013698,2]
[335747589,1724475045042,-531.27393272,0.00013698,2]
[335747590,1724475045051,-691.4,0.00013698,2]
[335747591,1724475045060,-963.71,0.00013698,2]
[335747592,1724475045070,-963.71,0.00013698,2]
[335747593,1724475045079,-963.71,0.00013698,2]
[335747594,1724475045088,-963.71,0.00013698,2]
[335747595,1724475045098,-963.71,0.00013698,2]
[335747596,1724475045107,-963.71,0.00013698,2]
[335747597,1724475045116,-963.71,0.00013698,2]
[335747598,1724475045126,-2016.11,0.00013698,2]
[335747599,1724475045136,-963.71,0.00013698,2]
[335747600,1724475045146,-963.71,0.00013698,2]
[335747601,1724475045156,-963.71,0.00013698,2]
[335747602,1724475045301,-963.71,0.00013698,2]
[335747603,1724475045332,-963.71,0.00013698,2]
[335747604,1724475045342,-963.71,0.00013698,2]
[335747605,1724475045351,-500.0,0.00013698,2]
[335747606,1724475045360,-963.71,0.00013698,2]
[335747607,1724475045370,-963.71,0.00013698,2]
[335747608,1724475045379,-592.45,0.00013698,2]
[335747609,1724475045388,-1640.21,0.00013698,2]
[335747610,1724475045397,-963.71,0.00013698,2]
[335747611,1724475045406,-963.71,0.00013698,2]
[335747612,1724475045415,-963.71,0.00013698,2]
[335747613,1724475045425,-963.71,0.00013698,2]
[335747614,1724475045434,-963.71,0.00013698,2]
[335747615,1724475045443,-963.71,0.00013698,2]
[335747616,1724475045453,-963.71,0.00013698,2]
[335747617,1724475045462,-963.72454486,0.00013698,2]
[335747618,1724475045471,-500.0,0.00013698,2]
[335747619,1724475045480,-500.0,0.00013698,2]
[335747620,1724475045490,-500.0,0.00013698,2]
[335747621,1724475045499,-500.0,0.00013698,2]
[335747622,1724475045508,-500.0,0.00013698,2]
[335747623,1724475045518,-500.0,0.00013698,2]
[335747624,1724475045528,-1042.13,0.00013698,2]
[335747625,1724475045537,-1007.1,0.00013698,2]
[335747627,1724475045546,-1963.71,0.00013698,2]
[335747629,1724475045555,-1050.46,0.00013698,2]
[335747631,1724475045564,-500.0,0.00013698,2]
[335747633,1724475045574,-500.0,0.00013698,2]
[335747634,1724475045583,-500.0,0.00013698,2]
[335747635,1724475045591,-175.7479345,0.00013698,2]
[335747636,1724475045600,-500.0,0.00013698,2]
[335747637,1724475045610,-500.0,0.00013698,2]
[335747638,1724475045619,-500.0,0.00013698,2]
[335747639,1724475045628,-500.0,0.00013698,2]
[335747640,1724475045637,-580.25,0.00013698,2]
[335747641,1724475045646,-500.0,0.00013698,2]
[335747642,1724475045655,-500.0,0.00013698,2]
[335747643,1724475045665,-631.68,0.00013698,2]
[335747644,1724475045674,-500.0,0.00013698,2]
[335747645,1724475045683,-500.0,0.00013698,2]
[335747646,1724475045692,-732.18,0.00013698,2]
[335747648,1724475045701,-500.0,0.00013698,2]
[335747650,1724475045711,-500.0,0.00013698,2]
[335747652,1724475045720,-773.65,0.00013698,2]
[335747654,1724475045729,-500.0,0.00013698,2]
[335747656,1724475045739,-500.0,0.00013698,2]
[335747657,1724475045748,-500.0,0.00013698,2]
[335747659,1724475045758,-500.0,0.00013698,2]
[335747660,1724475045767,-1397.91,0.00013698,2]
[335747661,1724475045775,-500.0,0.00013698,2]
[335747662,1724475045785,-500.0,0.00013698,2]
[335747663,1724475045793,-500.0,0.00013698,2]
[335747664,1724475045803,-500.0,0.00013698,2]
[335747665,1724475045812,-500.0,0.00013698,2]
[335747666,1724475045822,-894.63,0.00013698,2]
[335747667,1724475045832,-500.0,0.00013698,2]
[335747668,1724475045842,-500.0,0.00013698,2]
[335747669,1724475045852,-500.0,0.00013698,2]
[335747670,1724475045861,-1716.46,0.00013698,2]
[335747671,1724475045870,-500.0,0.00013698,2]
[335747672,1724475045879,-500.0,0.00013698,2]
[335747673,1724475045889,-1050.21,0.00013698,2]
[335747674,1724475045898,-500.0,0.00013698,2]
[335747675,1724475045908,-500.0,0.00013698,2]
[335747676,1724475045917,-500.0,0.00013698,2]
[335747677,1724475045926,-500.0,0.00013698,2]
[335747678,1724475045936,-307.37,0.00013698,2]
[335747679,1724475045945,-500.0,0.00013698,2]
[335747680,1724475045954,-150.0,0.00013698,2]
[335747681,1724475045964,-3690.29,0.00013698,2]
[335747682,1724475045974,-591.76,0.00013698,2]
[335747683,1724475045983,-318.6461371,0.00013698,2]
[335747684,1724475045992,-500.0,0.00013698,2]
[335747685,1724475046001,-500.0,0.00013698,2]
[335747686,1724475046009,-662.57,0.00013698,2]
[335747687,1724475046019,-500.0,0.00013698,2]
[335747688,1724475046028,-500.0,0.00013698,2]
[335747689,1724475046037,-500.0,0.00013698,2]
[335747690,1724475046046,-6870.65,0.00013698,2]
[335747691,1724475046055,-630.92,0.00013698,2]
[335747692,1724475046065,-1014.35,0.00013698,2]